[Event "Polish Youth B18 Championship 2023"]
[Site "Jastrzebia Gora"]
[Date "2023.03.17"]
[Round "7.22"]
[White "Czarniecki, Pawel"]
[Black "Sternik, Piotr"]
[Result "1-0"]
[ECO "D00"]
[WhiteElo "1625"]
[BlackElo "1746"]
[Annotator "NA RC COMBH"]
[PlyCount "83"]
[EventDate "2023.03.11"]
[EventType "swiss"]
[EventCountry "POL"]
[SourceTitle "playchess.com"]
[Source "ChessBase"]
[SourceQuality "1"]
[TimeControl "40/5400+30:1800+30"]

1. d4 {[%emt 0:00:01]} d5 {[%emt 0:00:32]} 2. Bf4 {[%emt 0:00:07]} Nf6 {[%emt 0:01:50]} 3. e3 {[%emt 0:00:10]} e6 {[%emt 0:01:06]} 4. Bd3 {[%emt 0:00:21]} c5 {[%emt 0:00:04]} 5. c3 {[%emt 0:00:04]} Nc6 {[%emt 0:00:39]} 6. Nd2 {[%emt 0:00:10]} Bd6 {[%emt 0:03:05]} 7. Bg3 {[%emt 0:00:18]} e5 {[%emt 0:10:39]} 8. dxe5 {[%emt 0:04:37]} Nxe5 {[%emt 0:00:28]} 9. Bc2 {[%emt 0:00:19]} O-O {[%emt 0:06:32]} 10. Ne2 {[%emt 0:03:59]} Bg4 {[%emt 0:02:45]} 11. f3 {[%emt 0:00:59]} Bd7 {[%emt 0:05:41]} 12. a4 {[%emt 0:09:02]} Bc6 {[%emt 0:02:13]} 13. O-O {[%emt 0:01:12]} Re8 {[%emt 0:02:11]} 14. Bf2 {[%emt 0:00:53]} Qc7 {[%emt 0:02:38]} 15. Ng3 {[%emt 0:02:46]} Ng6 {[%emt 0:08:12]} 16. Re1 {[%emt 0:02:39]} Rad8 {[%emt 0:00:26]} 17. Qb1 {[%emt 0:04:33]} a5 {[%emt 0:05:49]} 18. Ndf1 {[%emt 0:01:09]} b6 {[%emt 0:06:22]} 19. Nf5 {[%emt 0:03:19]} Bf8 {[%emt 0:02:17]} 20. Bg3 {[%emt 0:04:28]} Qb7 {[%emt 0:00:07]} 21. Qa2 {[%emt 0:02:33]} Nh5 {[%emt 0:05:26]} 22. Bf2 {[%emt 0:04:10]} Ne5 {[%emt 0:04:23]} 23. Bh4 {[%emt 0:03:17]} Rd7 {[%emt 0:02:16]} 24. Rad1 {[%emt 0:09:39]} g6 {[%emt 0:05:26]} 25. f4 {[%emt 0:10:48]} gxf5 {[%emt 0:09:51]} 26. fxe5 {[%emt 0:00:11]} Rxe5 {[%emt 0:03:03]} 27. Ng3 {[%emt 0:00:58]} f4 {[%emt 0:01:09]} 28. exf4 {[%emt 0:05:26]} Rxe1+ {[%emt 0:00:04]} 29. Rxe1 {[%emt 0:00:04]} Nxf4 {[%emt 0:01:35]} 30. Qb1 {[%emt 0:02:57]} Ng6 {[%emt 0:00:46]} 31. Bg5 {[%emt 0:01:27]} Be7 {[%emt 0:02:16]} 32. Bh6 {[%emt 0:00:49]} d4 {[%emt 0:01:01]} 33. Ne4 {[%emt 0:00:30]} Rd8 {[%emt 0:00:19]} 34. cxd4 {[%emt 0:03:28]} cxd4 {[%emt 0:00:04]} 35. b3 {[%emt 0:00:24]} Qd7 {[%emt 0:04:04]} 36. Bd3 {[%emt 0:03:18]} Re8 {[%emt 0:01:45]} 37. Qc2 {[%emt 0:01:22]} Bxe4 {[%emt 0:00:24]} 38. Rxe4 {[%emt 0:00:22]} Rc8 {[%emt 0:00:40]} 39. Qf2 {[%emt 0:03:45]} Rd8 {[%emt 0:01:14]} 40. h4 {[%emt 0:00:00]} Qd5 {[%emt 0:00:00]} 41. Rxe7 {[%emt 0:04:27]} f5 {[%emt 0:05:36]} 42. Bc4 {[%emt 0:01:56]} 1-0

[Event "Polish Youth B18 Championship 2023"]
[Site "Jastrzebia Gora"]
[Date "2023.03.18"]
[Round "8.1"]
[White "Kaliszuk, Kamil"]
[Black "Dzida, Kamil"]
[Result "1/2-1/2"]
[ECO "D38"]
[WhiteElo "2217"]
[BlackElo "2333"]
[Annotator "TA"]
[PlyCount "107"]
[EventDate "2023.03.11"]
[EventType "swiss"]
[EventCountry "POL"]
[SourceTitle "playchess.com"]
[Source "ChessBase"]
[SourceQuality "1"]
[TimeControl "40/5400+30:1800+30"]

{[%evp 11,107,26,15,11,22,4,10,5,17,6,7,15,10,17,16,9,51,42,130,43,55,37,40,44,53,39,29,32,45,45,46,16,84,78,76,42,26,0,0,0,0,0,0,-1,-1,-8,-7,-4,-5,-159,0,0,31,32,32,20,23,9,9,3,3,3,4,0,0,0,0,0,0,0,0,0,0,0,0,0,0,0,0,0,0,0,0,0,0,0,0,0,0,0,0,0,0,0,0,0,0,0]} 1. d4 {[%emt 0:00:03] Krasenkow,Michal} Nf6 {[%emt 0:00:07]} 2. c4 {[%emt 0:00:10]} e6 {[%emt 0:00:04]} 3. Nf3 {[%emt 0:00:11]} d5 {[%emt 0:00:08]} 4. Nc3 {[%emt 0:00:20]} Bb4 {[%emt 0:00:35]} 5. Qa4+ {[%emt 0:00:10]} Nc6 {[%emt 0:00:05]} 6. e3 {[%emt 0:00:54]} O-O {[%emt 0:00:31]} 7. Qc2 {[%emt 0:00:24] D38: Queen's Gambit Declined: Ragozin Defence (4 Nf3 Bb4).} Re8 {[%emt 0:00:47]} 8. Bd2 {[%emt 0:01:27]} Bf8 {[%emt 0:00:07]} 9. a3 {[%emt 0:00:16]} e5 {[%emt 0:00:23]} 10. dxe5 {[%emt 0:00:54]} Nxe5 {[%emt 0:00:08]} 11. cxd5 {[%emt 0:00:43]} Nxf3+ {[%emt 0:02:25]} 12. gxf3 {[%emt 0:00:30]} Nxd5 {[%emt 0:00:02]} 13. Bd3 {[%emt 0:04:03] [#]} Nf6 $146 {[%emt 0:11:59]} ({Predecessor:} 13... Nxc3 14. Bxc3 Qh4 15. O-O-O g6 16. Be4 Bg7 17. Qa4 Qe7 18. Bxg7 Kxg7 19. h4 Qc5+ {0-1 Navara,D (2703)-Grischuk,A (2764) Hamburg FIDE GP 2019 (2.2)}) 14. O-O-O {[%emt 0:09:03]} c5 {[%emt 0:04:01] [#]} ({Black should try} 14... c6 $14) 15. Ne4 {[%emt 0:08:13]} (15. Be1 $1 $16) 15... Nxe4 $14 {[%emt 0:03:20]} 16. Bxe4 {[%emt 0:01:00]} Qh4 {[%emt 0:00:05]} 17. Bc3 {[%emt 0:03:08]} g6 {[%emt 0:11:44]} 18. Rhg1 {[%emt 0:05:11][%cal Re4g6]} Bg7 {[%emt 0:05:51] Dodges Bxg6} 19. Bxg7 {[%emt 0:13:52]} Kxg7 {[%emt 0:00:05]} 20. f4 {[%emt 0:04:19][%cal Bf3f4,Bf4f5][%mdl 32]} Qe7 {[%emt 0:04:22] Dodges Rg5} 21. Bd3 {[%emt 0:02:41]} b6 {[%emt 0:04:29]} (21... Qf6 $11 {keeps the balance.}) 22. f5 $16 {[%emt 0:11:42][%cal Rf5g6] White is more active.} Qf6 {[%emt 0:00:09]} 23. h4 {[%emt 0:01:59] Hoping for h5.} Re5 $1 {[%emt 0:05:12][%cal Rc8f5]} 24. f4 {[%emt 0:10:58]} (24. e4 {looks sharper.} c4 25. f4 Rxf5 26. exf5 cxd3 27. Qg2) 24... Rxe3 {[%emt 0:02:15]} 25. fxg6 {[%emt 0:06:30]} hxg6 {[%emt 0:00:49] ...c4 would be deadly.} (25... Qxh4 $2 26. gxf7+ Kxf7 27. Bc4+ Kf6 28. Qg2 $18) 26. f5 {[%emt 0:02:54][%cal Rf5g6]} Rxd3 {[%emt 0:02:04][%mdl 64] Remove Defender} 27. Qxd3 {[%emt 0:00:14]} Bxf5 {[%emt 0:03:24]} 28. Qf3 $132 {[%emt 0:00:39][%mdl 2048] White is fighting back} Re8 {[%emt 0:01:42] Strongly threatening ...Re4.} 29. h5 {[%emt 0:00:57]} Re4 {[%emt 0:01:41]} 30. Rd3 $2 {[%emt 0:02:26] [#]} (30. Qc3 $11 Qxc3+ 31. bxc3) 30... Rc4+ $2 {[%emt 0:03:24]} (30... g5 $1 $17 {White must now prevent ...Kh7.} 31. Re3 (31. h6+ $2 Kh7 $19) 31... Rh4) 31. Rc3 $11 {[%emt 0:00:06]} Rxc3+ {[%emt 0:00:03]} 32. Qxc3 {[%emt 0:01:47]} Qxc3+ {[%emt 0:00:04]} 33. bxc3 {[%emt 0:00:07][%mdl 4096] Endgame KR-KB} Kf8 {[%emt 0:02:21]} 34. hxg6 {[%emt 0:01:41]} Bxg6 {[%emt 0:00:06] The position is equal.} 35. Re1 {[%emt 0:01:27]} Bf5 {[%emt 0:00:15]} 36. Kd2 {[%emt 0:01:49]} Be6 {[%emt 0:00:28]} 37. a4 {[%emt 0:02:20]} Ke7 {[%emt 0:03:13]} 38. a5 {[%emt 0:01:43]} b5 {[%emt 0:00:23]} 39. Rh1 {[%emt 0:00:37]} Kd6 {[%emt 0:02:16]} 40. Rh8 {[%emt 0:00:00]} Kc7 {[%emt 0:00:00]} 41. Re8 {[%emt 0:06:09]} Kb7 {[%emt 0:03:42]} 42. Re7+ {[%emt 0:01:30]} Ka6 {[%emt 0:00:08]} 43. Rc7 {[%emt 0:01:20]} Kxa5 {[%emt 0:00:12] ...Kb6 is the strong threat.} 44. Rxa7+ {[%emt 0:00:32]} Kb6 {[%emt 0:00:05]} 45. Ra8 {[%emt 0:01:41]} b4 {[%emt 0:00:14]} 46. cxb4 $1 {[%emt 0:01:05]} cxb4 {[%emt 0:00:05]} 47. Kd3 $1 {[%emt 0:01:44]} Kc5 {[%emt 0:01:37]} 48. Ra5+ {[%emt 0:00:46]} Kd6 {[%emt 0:00:27]} 49. Kd4 {[%emt 0:00:14]} b3 {[%emt 0:00:08]} 50. Ra6+ {[%emt 0:01:51]} Kc7 {[%emt 0:01:38] ( -> ...b2)} 51. Kc5 {[%emt 0:01:51]} Kd7 {[%emt 0:00:19]} 52. Ra7+ {[%emt 0:00:49]} Ke8 {[%emt 0:00:07]} 53. Kd6 $1 {[%emt 0:01:08]} Kf8 {[%emt 0:00:09]} 54. Ke5 {[%emt 0:00:35] Weighted Error Value: White=0.10 (very precise) /Black=0.10 (very precise)} 1/2-1/2

[Event "Polish Youth B18 Championship 2023"]
[Site "Jastrzebia Gora"]
[Date "2023.03.18"]
[Round "8.2"]
[White "Ochedzan, Tymon"]
[Black "Karolczuk, Iwo"]
[Result "0-1"]
[ECO "B90"]
[WhiteElo "2240"]
[BlackElo "2346"]
[Annotator "TA"]
[PlyCount "92"]
[EventDate "2023.03.11"]
[EventType "swiss"]
[EventCountry "POL"]
[SourceTitle "playchess.com"]
[Source "ChessBase"]
[SourceQuality "1"]
[TimeControl "40/5400+30:1800+30"]

{[%evp 10,92,18,14,10,7,4,-2,16,14,22,22,41,0,0,0,0,0,0,0,6,-32,-29,-52,-22,-35,-27,-86,0,0,0,0,32,31,36,0,0,-106,-88,-136,-138,-176,-149,-287,-194,-191,-201,-238,-242,-243,-264,-385,-439,-478,-457,-469,-424,-604,-584,-971,-989,-984,-972,-1060,-932,-1085,-818,-676,-690,-686,-645,-643,-620,-741,-717,-722,-711,-966,-954,-1164,-1090,-29974,-29975,-6342,-6335]} 1. e4 {[%emt 0:01:22]} c5 {[%emt 0:00:08]} 2. Nf3 {[%emt 0:00:04]} d6 {[%emt 0:00:06]} 3. d4 {[%emt 0:00:04]} cxd4 {[%emt 0:00:05]} 4. Nxd4 {[%emt 0:00:03]} Nf6 {[%emt 0:00:05]} 5. Nc3 {[%emt 0:00:05]} a6 {[%emt 0:00:04]} 6. Nb3 {[%emt 0:00:04]} Nbd7 {[%emt 0:00:31] B90: Sicilian Najdorf: Unusual White 6th moves, 6 Be3 Ng4 and 6 Be3 e5.} 7. g4 {[%emt 0:00:33]} h6 {[%emt 0:00:44]} 8. a4 {[%emt 0:00:49]} b6 {[%emt 0:20:14] The position is equal.} (8... Ne5 $5 {[%cal Rc8g4]}) 9. Bg2 {[%emt 0:00:35]} Bb7 {[%emt 0:00:08]} 10. Qe2 {[%emt 0:01:52] [#]} e6 $146 {[%emt 0:02:22]} ({Predecessor:} 10... Rc8 11. f4 g5 12. fxg5 hxg5 13. Bxg5 Bg7 14. O-O-O Rxc3 15. bxc3 Qc7 16. Bd2 Ne5 {0-1 Ronka,E (2355)-Vishnu,P (2476) Titled Tuesday intern op 22 Mar Early blitz 2022 (3)}) 11. O-O {[%emt 0:04:35]} g5 {[%emt 0:07:57]} 12. f4 {[%emt 0:07:05] Repels Ne5} gxf4 {[%emt 0:10:42]} 13. Bxf4 {[%emt 0:00:13]} Qc7 {[%emt 0:00:38]} 14. h3 {[%emt 0:11:00]} Be7 {[%emt 0:08:01]} 15. Rad1 {[%emt 0:01:29]} (15. Rf2 $5) 15... Ne5 {[%emt 0:03:53]} 16. Nd2 {[%emt 0:05:43]} Nfd7 {[%emt 0:03:56]} 17. Nf3 {[%emt 0:05:00]} Nc4 {[%emt 0:04:35]} 18. e5 {[%emt 0:14:46]} d5 {[%emt 0:02:33]} (18... Nxb2 $17 19. exd6 Qxc3 20. dxe7 Nxd1 21. Rxd1 Bxf3 22. Bxf3 Rc8) 19. Kh1 $11 {[%emt 0:17:29]} (19. b3 Qc5+ 20. Qf2 Na3 $17) 19... Qc5 {[%emt 0:04:09]} (19... Nxb2 20. Nxd5 Bxd5 21. Rxd5 $14) 20. Bc1 {[%emt 0:05:46]} O-O-O {[%emt 0:05:13]} 21. b3 {[%emt 0:04:38]} Na5 {[%emt 0:01:14][%cal Bc4a5,Ba5c6,Bc6e5,Be5g6][%mdl 32]} 22. Rd3 {[%emt 0:00:09]} (22. Na2 $5 {[%cal Rf3d4]}) 22... Qc7 {[%emt 0:01:52]} 23. Na2 {[%emt 0:01:33]} (23. Bf4 $11 {keeps the balance.}) 23... Nc5 $36 {[%emt 0:02:46][%mdl 2048] Black is in control. White is on the road to losing.} 24. Rc3 {[%emt 0:02:27] [#]} (24. Rdd1 $142) 24... Nc6 $1 {[%emt 0:01:04]} (24... d4 25. Nxd4 Rxd4 26. b4 $15) 25. Ne1 {[%emt 0:04:32]} d4 {[%emt 0:05:01]} ({Inferior is} 25... Nxe5 26. Bf4 f6 27. b4 $11) ({And not} 25... Qxe5 26. Qxe5 Nxe5 27. Nd3) 26. Rg3 {[%emt 0:00:08]} (26. Rc4 $17) 26... Qxe5 {[%emt 0:01:13]} ({Weaker is} 26... Nxe5 27. Bf4 Bd6 28. Kh2 $17) 27. Qxe5 {[%emt 0:01:11]} Nxe5 {[%emt 0:00:19]} 28. Bf4 {[%emt 0:00:40]} Ng6 {[%emt 0:00:26] And now ...Nxf4 would win.} 29. Bxb7+ {[%emt 0:01:39]} Kxb7 {[%emt 0:00:14]} 30. Rgf3 {[%emt 0:02:16]} (30. Nd3 {was worth a try.}) 30... Ne4 $19 {[%emt 0:03:47]} 31. Kg1 {[%emt 0:01:37]} f5 {[%emt 0:01:26]} 32. gxf5 {[%emt 0:01:36]} exf5 {[%emt 0:00:05]} 33. Ng2 {[%emt 0:00:12]} (33. Bh2 $142 Rhg8 34. Kh1) 33... Rhg8 {[%emt 0:00:48]} 34. Kh2 {[%emt 0:01:57]} Nxf4 {[%emt 0:00:29]} 35. Nxf4 {[%emt 0:00:04] White is weak on the dark squares} Nd2 {[%emt 0:00:09][%csl LRf1,LRf3]} 36. Nc1 {[%emt 0:01:22]} Bd6 {[%emt 0:01:05]} 37. Ncd3 {[%emt 0:00:13]} Rde8 {[%emt 0:00:41]} 38. Kh1 {[%emt 0:00:31]} Nxf1 {[%emt 0:00:49]} 39. Rxf1 {[%emt 0:00:04]} Re3 {[%emt 0:00:13]} 40. Rf2 {[%emt 0:00:00]} Rgg3 {[%emt 0:00:00]} 41. Ne2 {[%emt 0:05:19]} Rxh3+ {[%emt 0:06:45]} 42. Kg1 {[%emt 0:00:28]} Rh4 {[%emt 0:01:13]} 43. Ne1 {[%emt 0:03:07]} Bg3 {[%emt 0:03:17]} 44. Nxg3 {[%emt 0:00:37]} Rxg3+ {[%emt 0:00:08]} 45. Ng2 {[%emt 0:00:16]} Rhg4 {[%emt 0:00:16]} 46. Kf1 {[%emt 0:00:07] [#]} Rxg2 $1 {[%emt 0:00:21] Weighted Error Value: White=0.76/Black=0.21 (precise)} 0-1

[Event "Polish Youth B18 Championship 2023"]
[Site "Jastrzebia Gora"]
[Date "2023.03.18"]
[Round "8.3"]
[White "Kacprzak, Karol"]
[Black "Backiel, Hubert"]
[Result "1-0"]
[ECO "B51"]
[WhiteElo "2221"]
[BlackElo "2127"]
[Annotator "TA"]
[PlyCount "87"]
[EventDate "2023.03.11"]
[EventType "swiss"]
[EventCountry "POL"]
[SourceTitle "playchess.com"]
[Source "ChessBase"]
[SourceQuality "1"]
[TimeControl "40/5400+30:1800+30"]

{[%evp 9,87,18,6,11,15,3,40,42,43,46,43,41,65,63,69,66,70,51,61,53,45,45,35,43,39,0,20,20,40,28,144,158,159,157,130,136,183,93,101,101,101,101,101,96,104,101,96,94,94,94,94,85,91,85,87,85,88,88,90,87,85,79,487,494,495,487,468,468,468,443,470,489,486,483,461,434,437,440,408,414]} 1. e4 {[%emt 0:00:02]} c5 {[%emt 0:03:07]} 2. Nf3 {[%emt 0:00:38][%cal Bg1f3,Bf3d4,Bd4b3][%mdl 32]} d6 {[%emt 0:00:05]} 3. Bb5+ {[%emt 0:00:08]} Nd7 {[%emt 0:00:20]} 4. d4 {[%emt 0:00:07]} cxd4 {[%emt 0:00:19]} 5. Nxd4 {[%emt 0:00:19]} Ngf6 {[%emt 0:00:57]} 6. O-O {[%emt 0:00:28] B51: Sicilian: Moscow Variation (3 Bb5+) without 3...Bd7.} a6 {[%emt 0:02:13]} 7. Bd3 {[%emt 0:00:24]} e5 {[%emt 0:00:12]} 8. Nb3 {[%emt 0:01:07] White is slightly better.} Be7 {[%emt 0:02:50]} 9. c4 {[%emt 0:05:30] [#]} O-O $146 {[%emt 0:02:52][%cal Ob7b5]} ({Predecessor:} 9... a5 10. Be3 a4 11. N3d2 Nc5 12. Bc2 Bd7 13. Nc3 O-O 14. h3 Qa5 15. Rb1 Rfc8 {1-0 Xiong,J (2687)-So,W (2772) Speed Chess Chess.com INT blitz 2021 (1.18)}) 10. Nc3 {[%emt 0:00:28]} b6 {[%emt 0:02:23]} 11. Be3 {[%emt 0:07:17]} Nc5 {[%emt 0:03:59]} 12. Nxc5 {[%emt 0:09:01]} bxc5 {[%emt 0:00:37]} 13. h3 {[%emt 0:01:10]} Be6 {[%emt 0:09:40]} 14. b3 {[%emt 0:07:48]} Nd7 {[%emt 0:03:13][%cal Bf6d7,Bd7b8,Bb8c6][%mdl 32]} 15. Qd2 {[%emt 0:04:16]} Nb8 {[%emt 0:05:16]} 16. Rad1 {[%emt 0:05:59]} Nc6 {[%emt 0:00:52]} 17. Nd5 {[%emt 0:04:08]} h6 {[%emt 0:08:30]} 18. Bb1 {[%emt 0:06:29] And now Nxe7+ would win.} Nd4 {[%emt 0:13:53]} 19. f4 {[%emt 0:10:21]} exf4 {[%emt 0:10:25]} (19... Bh4 $11) 20. Nxe7+ $16 {[%emt 0:02:30]} (20. Bxf4 $6 Bxd5 21. cxd5 (21. exd5 Bg5 $11) 21... Bg5 $11) (20. Nxf4 $6 Bf6 $11) 20... Qxe7 {[%emt 0:01:45]} 21. Bxd4 {[%emt 0:01:38]} (21. Bxf4 $6 Rfd8 $16) 21... cxd4 {[%emt 0:00:08]} 22. Qxf4 {[%emt 0:01:09]} a5 {[%emt 0:17:11]} (22... Rab8 $16 {keeps fighting.} 23. Kh1 (23. Rxd4 Qa7 $16) 23... Qc7 24. Rxd4 Rfd8) 23. a4 {[%emt 0:04:43]} (23. Rxd4 $18 Qa7 24. Rfd1 (24. Qxd6 $2 Rfd8 $19)) 23... Rab8 {[%emt 0:02:20]} 24. Bc2 {[%emt 0:00:35]} (24. Rxd4 $6 Rxb3 25. e5 dxe5 26. Qxe5 Qa3 $11) 24... Qa7 {[%emt 0:00:07] [#] Threatens to win with ...d3+.} 25. Qf2 {[%emt 0:00:45] White is more active.} (25. Qxd6 $2 d3+ 26. Kh2 dxc2 $19) 25... Qc5 {[%emt 0:02:28]} 26. Qxd4 {[%emt 0:02:11]} Qg5 {[%emt 0:00:05]} 27. Kh1 {[%emt 0:01:55]} Rfd8 {[%emt 0:00:05]} 28. Rd2 {[%emt 0:02:53]} Rb7 {[%emt 0:03:05]} 29. Rfd1 {[%emt 0:02:33][%cal Oe4e5]} Rbd7 {[%emt 0:04:03]} 30. Qc3 {[%emt 0:01:33]} Qc5 {[%emt 0:00:45]} 31. Rd3 {[%emt 0:00:17][%cal Bd2d3,Bd3g3,Bg3g5,Bg5a5,Ba5a6,Ba6d6][%mdl 32]} f6 {[%emt 0:00:34]} 32. Rg3 {[%emt 0:00:33]} Kf7 {[%emt 0:00:22]} 33. Rf1 {[%emt 0:01:34][%cal Og3g7] Rxg7+! is the strong threat.} Qe5 {[%emt 0:00:59]} 34. Qe3 $36 {[%emt 0:02:05][%mdl 2048] Keeping Black busy.} Rf8 {[%emt 0:01:10]} 35. Bd1 {[%emt 0:00:35]} h5 $2 {[%emt 0:00:29][%mdl 8192] Black cannot hold the game after this.} (35... Rb8 $16 {is tougher.}) 36. Rg5 $18 {[%emt 0:01:27][%mdl 64] [#] Skewer, Double Attack} Qb2 {[%emt 0:00:27]} 37. Bxh5+ {[%emt 0:00:37]} ({Not} 37. Rxh5 Kg8 38. Rxa5 Bf7 $18) 37... Kg8 {[%emt 0:00:25]} 38. Rxa5 {[%emt 0:00:41]} Rb7 {[%emt 0:00:22]} 39. Bd1 {[%emt 0:00:19]} (39. Rb5 Rxb5 40. axb5 Ra8 $18) 39... Bf7 {[%emt 0:00:18]} 40. Qd3 {[%emt 0:00:00]} Re7 {[%emt 0:00:00]} 41. Bf3 {[%emt 0:04:27]} ({Resist} 41. Qxd6 Rfe8 $18) 41... Re5 {[%emt 0:04:58]} 42. Ra6 {[%emt 0:02:49]} Rb8 {[%emt 0:00:39]} 43. Rb1 {[%emt 0:00:23]} (43. Rxd6 Rxb3 44. Rd8+ Kh7 $18) 43... Qa3 {[%emt 0:00:39]} 44. Rxd6 {[%emt 0:00:55] Weighted Error Value: White=0.06 (flawless) /Black=0.27 (precise)} 1-0

[Event "Polish Youth B18 Championship 2023"]
[Site "Jastrzebia Gora"]
[Date "2023.03.18"]
[Round "8.4"]
[White "Luczak, Filip"]
[Black "Luberanski, Jakub"]
[Result "1-0"]
[ECO "A00"]
[WhiteElo "2345"]
[BlackElo "2242"]
[Annotator "TA"]
[PlyCount "92"]
[EventDate "2023.03.11"]
[EventType "swiss"]
[EventCountry "POL"]
[SourceTitle "playchess.com"]
[Source "ChessBase"]
[SourceQuality "1"]
[TimeControl "40/5400+30:1800+30"]

{[%evp 15,92,0,-11,-21,-14,-19,-18,-10,-14,-12,0,-12,-10,-11,0,0,0,0,0,0,0,0,0,-19,-21,-18,-12,-37,-39,-43,-50,-48,105,109,165,178,217,232,216,0,0,-77,-35,-35,-41,-38,-41,-44,-82,-85,-81,-100,-18,-143,-143,-123,-93,-96,-31,-81,0,0,6,6,6,5,245,245,815,814,797,804,774,767,924,881,1642,1627,1069]} 1. g3 {[%emt 0:00:08]} g6 {[%emt 0:00:45]} 2. Bg2 {[%emt 0:00:11]} Bg7 {[%emt 0:00:03]} 3. e4 {[%emt 0:00:43]} c5 {[%emt 0:01:52]} 4. Ne2 {[%emt 0:03:26]} Nc6 {[%emt 0:00:04]} 5. d3 {[%emt 0:00:57]} e5 {[%emt 0:01:30]} 6. Nbc3 {[%emt 0:01:19]} Nge7 {[%emt 0:00:05]} 7. O-O {[%emt 0:00:10]} O-O {[%emt 0:00:06]} 8. f4 {[%emt 0:03:17]} d6 {[%emt 0:00:15]} 9. fxe5 {[%emt 0:06:36] B25: Closed Sicilian: 3 g3, lines without early Be3.} dxe5 {[%emt 0:02:42]} 10. Nd5 {[%emt 0:04:29]} Nxd5 {[%emt 0:03:06]} 11. exd5 {[%emt 0:00:07] The position is equal.} Ne7 {[%emt 0:00:03][%cal Bc6e7,Be7f5,Bf5d6][%mdl 32]} 12. c4 {[%emt 0:03:21]} Nf5 {[%emt 0:00:12] [#]} (12... Bg4 {is interesting.} 13. Be3 b6 14. h3 Nf5) 13. Kh1 $146 {[%emt 0:05:08]} ({Predecessor:} 13. Rb1 a5 14. a3 a4 15. h3 {½-½ Khamrakulov,I (2472)-Veingold,A (2464) Don Benito 2004 (8)}) 13... b6 {[%emt 0:06:29]} 14. Nc3 {[%emt 0:06:19]} Nd6 {[%emt 0:05:20]} 15. Be3 {[%emt 0:01:54]} f5 {[%emt 0:00:23]} 16. Qd2 {[%emt 0:03:15]} Rf7 {[%emt 0:06:04]} 17. Rae1 {[%emt 0:03:52]} Qf8 {[%emt 0:00:55]} 18. a3 {[%emt 0:08:04][%cal Ba2a3,Ba3a4,Ba4a5,Ba5b6][%mdl 32]} Bd7 {[%emt 0:05:06]} 19. Bg1 {[%emt 0:07:11]} a5 {[%emt 0:06:54]} 20. Qd1 $1 {[%emt 0:06:27]} a4 {[%emt 0:01:58]} 21. b4 {[%emt 0:08:41]} axb3 {[%emt 0:04:07]} 22. Qxb3 {[%emt 0:00:02]} Ra6 {[%emt 0:00:36]} 23. a4 $1 {[%emt 0:03:33][%cal Oa4a5]} h5 $2 {[%emt 0:09:44] [#]} (23... f4 $15 24. Qd1 Qd8) 24. a5 $1 $16 {[%emt 0:01:54][%mdl 512] White is more active.} f4 {[%emt 0:03:19]} (24... Nb7 $16 {is a better defense.}) (24... bxa5 25. Bxc5) 25. axb6 $18 {[%emt 0:00:32]} f3 {[%emt 0:00:52] [#]} 26. Rxf3 {[%emt 0:00:17][%mdl 512]} Rxf3 {[%emt 0:00:05]} 27. Bxc5 $2 {[%emt 0:00:15]} (27. b7 $18 Nxb7 28. Qxb7) 27... Rxd3 $11 {[%emt 0:07:49][%cal Oe5e4]} 28. Qb4 {[%emt 0:02:14] [#]} (28. b7 $11 {keeps the balance.} Qb8 29. Bxd6 Rxd6 30. c5) 28... Qb8 $1 $17 {[%emt 0:11:30]} 29. Bxd6 {[%emt 0:04:58]} Qxb6 {[%emt 0:01:36]} 30. Qxb6 {[%emt 0:01:27]} Rxb6 {[%emt 0:00:04][%cal Ba6b6,Bb6b4,Bb4c4,Bc4c2][%mdl 32]} 31. Ne4 {[%emt 0:00:05]} Bf5 {[%emt 0:03:04]} 32. Bc7 {[%emt 0:07:28]} Rb4 {[%emt 0:05:31]} 33. Nd6 {[%emt 0:04:32]} e4 {[%emt 0:06:54]} 34. Nxe4 {[%emt 0:03:58]} (34. Bxe4 $2 {perishes.} Bxe4+ 35. Nxe4 (35. Rxe4 $2 Rb1+ 36. Kg2 Rd2+ {[%mdl 64] Skewer} 37. Kf3 Rf1+ 38. Ke3 Bh6+ 39. Rf4 Bxf4+ 40. gxf4 Rxh2 $19) 35... Rxc4 $19) (34. Nxf5 $1 $11 gxf5 35. Bf1) 34... Rxc4 {[%emt 0:00:17]} 35. Bf4 {[%emt 0:00:33]} Rc2 {[%emt 0:03:18][%cal Od3a3]} (35... Rxd5 $2 36. Nf6+ Bxf6 37. Bxd5+ Kg7 38. Bxc4 $18) 36. d6 {[%emt 0:00:20]} Bf8 {[%emt 0:01:50]} (36... Rd4 $17 {[%cal Oc2g2] ...Rxg2! would be deadly.} 37. Ng5 Bf6) 37. h4 {[%emt 0:00:28]} (37. Kg1 $15) 37... Rd4 {[%emt 0:03:13]} (37... Bg7 $17) 38. Nf6+ $11 {[%emt 0:00:10]} Kf7 {[%emt 0:00:07] Strongly threatening ...Rxf4.} 39. Bd5+ {[%emt 0:00:52]} Rxd5 {[%emt 0:01:36][%mdl 64] Deflection} 40. Nxd5 {[%emt 0:00:00] With the idea Ne3.} Bg4 $2 {[%emt 0:00:00] A mistake that costs the game.} (40... Rc4 $11) 41. Ne3 $18 {[%emt 0:02:01]} Rc8 {[%emt 0:07:34]} (41... Re2 42. Rxe2 Bxe2) 42. Nxg4 {[%emt 0:00:40] White is clearly winning.} hxg4 {[%emt 0:00:04]} 43. d7 {[%emt 0:04:48]} Rd8 {[%emt 0:00:15] [#]} 44. Rf1 $1 {[%emt 0:00:13]} ({Not} 44. Rd1 Ke6 $11) 44... Ke6 {[%emt 0:02:29]} 45. Bg5 {[%emt 0:00:28]} Be7 {[%emt 0:03:28]} 46. Re1+ {[%emt 0:00:06][%mdl 64] Skewer, Deflection} Kd5 {Weighted Error Value: White=0.19 (very precise) /Black=0.34} 1-0